Cogmind - Beta 13 @@@ ROGUE MODE // 2024.04.02 @ 16:16:15 Player: DiscountHorde Result: Destroyed by G-34 Mercenary with Small Laser Performance ------------- Evolutions (1) 500 Regions Visited (2) 400 Robots Destroyed (36) 180 Value Destroyed (722) 722 Prototype IDs (3) 60 Alien Tech Used (0) 0 Bonus (0) 0 TOTAL SCORE: 1862 Bonus ------- None Cogmind --------- Core Integrity 0/400 Matter 294/300 Energy 265/265 System Corruption 5% Temperature Cool (6) Movement Hovering (510) Ox7 Location -9/Materials Parts ------- > --- POWER (1) -------- Improved Ion Engine > --- PROPULSION (4) --- Light Treads Aluminum Leg Improved Hover Unit > --- UTILITY (2) ------ Heat Sink High-capacity Storage Unit > --- WEAPON (2) ------- Medium Laser Assault Rifle > --- INVENTORY (20) --- Ion Engine Ion Engine Light Ion Engine Light Ion Engine Light Ion Engine Heat Sink Medium Matter Pod (100) Improved Terrain Scanner Light Armor Plating EM Pulse Gun Particle Cannon Grenade Launcher Grenade Launcher Peak State ------------ > --- POWER ------------ Light Nuclear Core > --- PROPULSION ------- Aluminum Leg Aluminum Leg Aluminum Leg > --- UTILITY ---------- High-capacity Storage Unit Improved Terrain Scanner > --- WEAPON ----------- Assault Rifle Katana > --- INVENTORY -------- Heavy Ion Engine Heat Sink Seismic Detector Light Armor Plating Trap Extractor EM Pulse Gun Medium Laser Particle Cannon Grenade Launcher Grenade Launcher [Rating: 15] Favorites ----------- Power Ion Engine Engine Ion Engine Power Core Light Nuclear Core Propulsion Aluminum Leg Treads Light Treads Leg Aluminum Leg Hover Unit Improved Hover Unit Utility Improved Terrain Scanner Device Improved Terrain Scanner Storage High-capacity Storage Unit Processor Visual Processing Unit Protection Light Armor Plating Weapon Assault Rifle Energy Gun Medium Laser Energy Cannon Particle Cannon Ballistic Gun Assault Rifle Launcher Grenade Launcher Slashing Weapon Katana Build | -11 -10 -9 ------- Run | Yrd Mat Mat Slots Evolved 2 | . . 2 Power . | . . . Propulsion 2 | . . 2 Utility . | . . . Weapon . | . . . Parts Attached 42 | 7 9 26 Power 8 | 1 . 7 Engine 5 | 1 . 4 Core 3 | . . 3 Reactor . | . . . Propulsion 10 | 2 2 6 Treads 3 | 2 . 1 Leg 6 | . 2 4 Wheel . | . . . Hover 1 | . . 1 Flight . | . . . Utility 8 | 1 2 5 Device 3 | 1 . 2 Storage 2 | . 2 . Processor 1 | . . 1 Hackware . | . . . Protection 2 | . . 2 Artifact . | . . . Weapon 16 | 3 5 8 Energy Gun 8 | 3 2 3 Energy Cannon 1 | . . 1 Ballistic Gun 5 | . 2 3 Ballistic Cannon . | . . . Launcher 1 | . 1 . Special Weapon . | . . . Impact Weapon . | . . . Slashing Weapon 1 | . . 1 Piercing Weapon . | . . . Special Melee Weapon . | . . . Unidentified Prototypes 1 | . . 1 Parts Lost 13 | . 2 11 Power 3 | . . 3 Propulsion 6 | . 1 5 Utility . | . . . Weapon 4 | . 1 3 Highest Loss Streak 5 | . 2 5 To Critical Strikes . | . . . Average Slot Usage (%) 89 | . 96 83 Engine 10 | . 14 7 Core 1 | . . 2 Treads 13 | . 25 1 Leg 14 | . 2 27 Device 11 | . 14 9 Storage 11 | . 11 11 Energy Gun 6 | . 7 5 Ballistic Gun 13 | . 16 10 Launcher 1 | . 3 . Slashing Weapon 2 | . . 5 Naked Turns . | . . . Heaviest Build 52 | 9 50 52 Greatest Support 40 | 40 40 40 Greatest Overweight (x) 7 | . 2 7 Average Overweight (x) . | . . 1 Largest Inventory Capacity 20 | 5 20 20 Average Capacity 15 | 5 13 20 Most Carried 15 | 5 15 14 Average Carried 10 | 2 11 10 Final Capacity 20 | 5 20 20 Final Carried 13 | 3 13 13 Class Distribution -------------------- 78% | Mutant 21% | Scavenger-Mutant Dominant Class ---------------- Mutant | -10/Materials Mutant | -9/Materials Resources | -11 -10 -9 ----------- Run | Yrd Mat Mat Matter Collected 1037 | 243 320 474 Remotely . | . . . Salvage Created 1160 | 112 340 708 Parts 82 | 7 33 42 Haulers Intercepted . | . . . Recyclers Shooed 4 | . 1 3 Parts Field Recycled . | . . . Retrieved Matter . | . . . Parts Self-Destructed . | . . . Prevented . | . . . Kills | -11 -10 -9 ------- Run | Yrd Mat Mat Combat Hostiles Destroyed 24 | . 10 14 Melee 7 | . . 7 Guns 16 | . 10 6 Classes Destroyed 9 | 2 4 3 Worker 2 | . 1 1 Tunneler 4 | 2 1 1 Recycler 3 | 1 . 2 Watcher 3 | . 1 2 Swarmer 10 | . 6 4 Grunt 10 | . 4 6 Brawler 1 | . . 1 Duelist 1 | . . 1 Sentry 2 | . . 2 Best Kill Streak 3 | 3 3 3 Combat Bots Only 3 | . 3 3 Max Kills in Single Turn 1 | 1 1 1 Gunslinging . | . . . Exploded . | . . . Melee 1 | . . 1 Uniques/NPCs Destroyed . | . . . Combat | -11 -10 -9 -------- Run | Yrd Mat Mat Hostile Shots Fired 219 | . 75 144 Missed 55 | . 22 33 Damage Taken 2091 | . 575 1516 Core 517 | . 113 404 Absorbed by Shields . | . . . Regen/Repaired (Parts) 19 | . . 19 Core Remaining (%) 77 | 100 54 . Volleys Fired 132 | 6 56 70 Largest 2 | 2 2 2 Hottest 124 | 90 100 124 Shots Fired 196 | 12 93 91 Gun 193 | 12 93 88 Cannon 3 | . . 3 Launcher . | . . . Special . | . . . Kinetic 119 | . 80 39 Thermal 77 | 12 13 52 Explosive . | . . . Electromagnetic . | . . . Robot Hit Streak 14 | 7 14 13 Robot Miss Streak 9 | 1 4 9 Penetration Max . | . . . Secondary Targets 2 | . 1 1 Max Gunslinging Chain 1 | . 1 1 Shots Hit Robots 139 | 8 52 79 Core Hits 55 | 4 18 33 Critical Kills . | . . . Critical Parts Destroyed . | . . . Critical Strikes 5 | 1 . 4 Burn 4 | 1 . 3 Sever 1 | . . 1 Melee Attacks 21 | . . 21 Impact . | . . . Slashing 21 | . . 21 Piercing . | . . . Sneak Attacks 2 | . . 2 Combat Hostiles . | . . . Follow-up Attacks . | . . . Damage Inflicted 2139 | 92 657 1390 Guns 1578 | 92 649 837 Cannons . | . . . Explosions . | . . . Melee 545 | . . 545 Ramming 16 | . 8 8 Kinetic 862 | . 551 311 Thermal 716 | 92 98 526 Explosive . | . . . Electromagnetic . | . . . Impact . | . . . Slashing 545 | . . 545 Piercing . | . . . Highest Corruption 5 | . . 5 Average Corruption 5 | . . 5 Corruption Purged . | . . . Corruption Blocked . | . . . Effects 19 | . . 19 Message Errors 2 | . . 2 Matter Fused 9 | . . 9 Heat Flow Errors 4 | . . 4 Data Loss (minor) 3 | . . 3 Misfires 1 | . . 1 Overload Shots . | . . . Overflow Damage 58 | . . 58 Projectiles . | . . . Explosions . | . . . Melee 58 | . . 58 Knockbacks 1 | . 1 . Impact 1 | . 1 . Kinetic . | . . . Secondary . | . . . Self-Inflicted Damage . | . . . Shots . | . . . Rammed 3 | . 3 . Targets Rammed 7 | . 3 4 Kicked 4 | . . 4 Crushed . | . . . Highest Temperature 603 | 180 78 603 Average Temperature 138 | 91 31 181 Received Heat Transfer 744 | . 249 495 Effects 8 | . . 8 Shutdowns 2 | . . 2 Interference 2 | . . 2 Matter Decay 1 | . . 1 Short Circuit 1 | . . 1 Damage (major) 1 | . . 1 Damage (core) 1 | . . 1 Siege Activations . | . . . Robots Corrupted . | . . . Combat Hostiles . | . . . Parts Fried . | . . . Impact Corruptions . | . . . Robots Melted 1 | . . 1 Combat Hostiles 1 | . . 1 Parts Melted 3 | . . 3 Heat Transferred 2139 | 334 296 1509 Parts Sabotaged . | . . . Parts Stolen . | . . . Parts Stripped . | . . . Power Chain Reactions . | . . . Alert | -11 -10 -9 ------- Run | Yrd Mat Mat Peak Influence 269 | 15 217 269 Initial 49 | . 9 49 Average 83 | 9 78 102 Maximum Alert Level 1 | . 1 1 Low Security (%) 97 | 100 98 95 Level 1 2 | . 1 4 Level 2 . | . . . Level 3 . | . . . Level 4 . | . . . Level 5 . | . . . High Security . | . . . Max Security . | . . . Squads Dispatched 2 | . 1 1 Investigation 1 | . 1 . Extermination . | . . . Reinforcement 1 | . . 1 Assault . | . . . Garrison . | . . . Intercept . | . . . Searches Triggered . | . . . Construction Impeded . | . . . Haulers Reinforced . | . . . Active Scanning Responses . | . . . Cargo Convoy Interrupts . | . . . Stealth | -11 -10 -9 --------- Run | Yrd Mat Mat Distress Signals 4 | . 3 1 Communications Jammed . | . . . Distress Signals . | . . . Times Spotted 48 | . 19 29 Peak Tracking Total 7 | . 4 7 Tactical Retreats 5 | . 2 3 Traps | -11 -10 -9 ------- Run | Yrd Mat Mat Traps Triggered 1 | . 1 . Indirectly . | . . . Trap Hack Attempts . | . . . Triggered . | . . . Disarmed . | . . . Reprogrammed 3 | . 3 . Reused . | . . . Traps Extracted . | . . . Installed . | . . . Triggered . | . . . Machines | -11 -10 -9 ---------- Run | Yrd Mat Mat Machines Disabled . | . . . Max in Single Turn . | . . . Machines Repaired . | . . . Machines Dismantled . | . . . Machines Sabotaged . | . . . Overloaded Fab Kills . | . . . Hacking | -11 -10 -9 --------- Run | Yrd Mat Mat Machines Accessed 7 | . 4 3 Terminals 3 | . 2 1 Fabricators . | . . . Repair Stations 2 | . 1 1 Recycling Units 1 | . 1 . Scanalyzers 1 | . . 1 Garrison Access . | . . . Total Hacks 21 | . 12 9 Successful 14 | . 8 6 Failed 7 | . 4 3 Catastrophic 1 | . . 1 Database Lockouts . | . . . Manual . | . . . Terminals 12 | . 8 4 Fabricators . | . . . Repair Stations 4 | . 1 3 Recycling Units 3 | . 3 . Scanalyzers 2 | . . 2 Garrison Access . | . . . Terminal Hacks 7 | . 5 2 Record 1 | . 1 . Prototype ID Bank 1 | . 1 . Alert Level 1 | . . 1 Locate Traps 2 | . 1 1 Reprogram Traps 1 | . 1 . Zone Layout 1 | . 1 . Fabricator Hacks . | . . . Repair Station Hacks 2 | . . 2 Scan Component 1 | . . 1 Repair 1 | . . 1 Recycling Unit Hacks 3 | . 3 . Recycle Component 1 | . 1 . Process 1 | . 1 . Report Inventory 1 | . 1 . Scanalyzer 2 | . . 2 Insert Component 1 | . . 1 Analyze 1 | . . 1 Garrison Access Hacks . | . . . Unauthorized Hacks . | . . . Terminals . | . . . Fabricators . | . . . Repair Stations . | . . . Recycling Units . | . . . Scanalyzers . | . . . Garrison Access . | . . . Data Cores Recovered . | . . . Used . | . . . Hacking Detections 4 | . 2 2 Full Trace Events . | . . . Feedback Events . | . . . Feedback Blocked . | . . . Robot Schematics Acquired . | . . . Robots Built . | . . . Authchips . | . . . Time . | . . . Total Robot Build Rating . | . . . Part Schematics Acquired 1 | . . 1 Parts Built . | . . . Authchips . | . . . Time . | . . . Total Part Build Rating . | . . . Parts Repaired 1 | . . 1 Time 38 | . . 38 Parts Recycled 1 | . 1 . Recycled Matter 77 | . 77 . Retrieved Matter . | . . . Retrieved Components . | . . . Parts Scanalyzed 1 | . . 1 Part Schematics Acquired 1 | . . 1 Parts Damaged . | . . . Bothacking | -11 -10 -9 ------------ Run | Yrd Mat Mat Used RIF Installer . | . . . Robots Hacked . | . . . Non-combat . | . . . Combat . | . . . Robot Hacks Applied . | . . . Relay Couplers Released . | . . . Fabnet Peak Effective % . | . . . Robots Rewired . | . . . Allies Hacked . | . . . Hacks Repelled . | . . . Allies | -11 -10 -9 -------- Run | Yrd Mat Mat Total Allies . | . . . Largest Group . | . . . Highest-Rated Group . | . . . Highest-Rated Ally . | . . . Total Orders . | . . . Ally Attacks . | . . . Total Damage . | . . . Kills . | . . . Allies Corrupted . | . . . Allies Melted . | . . . Intel | -11 -10 -9 ------- Run | Yrd Mat Mat Robot Analysis Total . | . . . Derelict Logs Recovered . | . . . Drone Launches . | . . . Drone Recoveries . | . . . Exploration | -11 -10 -9 ------------- Run | Yrd Mat Mat Turns Passed 2339 | 192 1091 1056 Spaces Moved 989 | 111 530 348 Core 17 | 17 . . Treads 588 | 94 492 2 Legs 371 | . 38 333 Wheels . | . . . Hover 13 | . . 13 Flight . | . . . Fastest Speed 50 | 50 160 190 Average Speed 186 | 143 170 223 Slowest Speed 510 | 160 320 510 Overloaded Moves . | . . . Propulsion Burnouts . | . . . Robots Hopped . | . . . Cave-ins Triggered . | . . . Exploration Rate (%) 31 | 6 70 18 Regions Visited 2 Branch Regions . Pre-discovered Areas . | . . . Known Exits Taken . | . . . Unknown Exits Taken 2 | 1 1 . Scrap Searched . | . . . Spaces Dug . | . . . Terrain Destroyed . | . . . Melee . | . . . Projectile . | . . . AOE . | . . . Terrain Rammed . | . . . Walls Destroyed . | . . . Machines Disabled . | . . . Actions | -11 -10 -9 --------- Run | Yrd Mat Mat Total 1256 | 132 627 497 Wait . | . . . Move 987 | 110 529 348 Hop . | . . . Pick Up 52 | 9 22 21 Fast Attach . | . . . Attach 28 | 6 4 18 Detach . | . . . Swap 14 | 1 5 8 Drop 15 | . 8 7 Fire 132 | 6 56 70 Melee 21 | . . 21 Ram . | . . . Kick 4 | . . 4 Crush 3 | . 3 . Escape Stasis . | . . . Rewire . | . . . Trap . | . . . Miscellaneous . | . . . Route ------- -11/Scrapyard -10/Materials (discovered 3 exits: *Mat x2 / [*Min]) -9/Materials History --------- Turn | Location | Event 7 | -11/Scrapyard | Discovered new exit (range 16) 193 | -11/Scrapyard | Entered Materials 314 | -10/Materials | Build established: Mutant 443 | -10/Materials | Discovered new exit (range 15) 921 | -10/Materials | Discovered new exit (range 14) 1245 | -10/Materials | Discovered new exit (range 15) 1284 | -10/Materials | Entered another Materials area 1284 | -9/Materials | Evolved 2 slots: Propulsion x2 1499 | -9/Materials | Lost 5 parts (2p1n2w) 1649 | -9/Materials | Repaired Lgt. Nuclear Core? 1978 | -9/Materials | Build established: Scavenger-Mutant 2022 | -9/Materials | Core integrity fell below 50% 2082 | -9/Materials | Core integrity fell below 20% 2340 | -9/Materials | Destroyed by G-34 Mercenary with Small Laser Last Messages --------------- Aluminum Leg destroyed. G-34 Mercenary suffers critical hit (Burn). G-34 Mercenary heat short circuits Heat Sink. System corrupted: Matter fused (-9). G-34 Mercenary heat damages core (-4). [Achievement: It's Just You] Acquired 40 matter. System corrupted: Component data lost. R-06 Scavenger collects Heat Sink. R-06 Scavenger collects Lgt. Assault Rifle. Acquired Lgt. Treads. System corrupted: Matter fused (-7). Acquired Imp. Hover Unit. R-06 Scavenger collects Lgt. Assault Rifle. R-06 Scavenger collects Broken Beam Rifle. R-06 Scavenger collects Lgt. Assault Rifle. Acquired 96 matter. System corrupted: Matter fused (-6). G-34 Mercenary destroyed. K-01 Serf collects debris. Map ----- +----------------------------------------------------+ | ### #??#?## #??#?#?#??? | | ??# ==! #??#### ##??????#?? | | ??# =* != #??# =##+##+#?"?????##? | | #?# ##############% ! ##?# *%# #?? ??"???? | | ??# ##?#????##??### !##??# # !!! #????? #?? | | ??# #?#????#??#???# ##??# # !! #? ?? #?? | | ??+ #??#??????#??## #??## # !! #???? #?# | | ??# #?????????#???# ##### # #? ? #?? | | ??# #???????#????## + = #? ? #??? | | ??# #?????#???????# ########## *%%#?# #?#?? | | ??# #?????????###?# #?#????######/#### #? ? | | ??# #???? ???????## #??????#?#??# + ?? | | ??# ????????##??# ##?#???????# #???? | | ??+ ????? ??#???#! !#???######## #???? | | ??# ????????????##!!!!##???# # ###+####?? | | ??? ?????????????######?#??# "" # # #?? | | ????????#??#??#?#???????#????# ""S + + ]! ##? | | ???????? ???????????##?#?????# "" # # ]! #?? | | ???????????????????#??????#??# # # !! ##? | | ?????????????? ?????????????# / # #? #?? | | ???????? ??? ??##################### # #?? | | ?????????? ?????# "T" ## + #??######? | | ????????? ???# ![!!## # #????????? | | ?????????? ?????# = %# # # ? ?????? | | ??#???#??? ?????#% = =## # #????????? | | ??# #####+######+######@ # #??????#?? | | ??# %%! kg% # +??????#?? | | ######## ###= # #????????? | | #??????# #?############# +????????? | | ** #### #??????# ##??????##????##+##????????? | | *^ ??#??# #?#?? ## #????#?????????? ??????????? | | *?????##?# #??????# #????????#?????????????????? | | ????????## #??????+ +???? ???#??????"??????????? | | ?????????# #??????# #?? ???????????????????????? | | ????????## ##?????# #?????????????????? ???????? | | ????? ???# ???????? ????????#??????????? ??????? | | ?????????## #?#?????# ??? ???????????"???????????? | | ?????????? #????????# #??#???????????????????????? | | ??????????#?????#???? ?? #???????????????????????? | | ????????????????????? ???????????????????????????? | | ????????????????????? ???? ??????????????????????? | | ????????????????????? ???????????????????????????? | | ?????????????????????????????????????????????????? | | ?????????????????????????????????????????????????? | | ?????????????????????????????????????????????????? | | ?????????????????????????????????????????????????? | | ?????????????????????????????????????????????????? | | ?????????????????????????????????????????????????? | | ?????????????????????????????????????????????????? | | ?????????????????????????????????????????????????? | +----------------------------------------------------+ Best States ------------- Heat Dissipation 38 Energy Generation 14 Energy Capacity 265 Matter Stores 300 Matter Capacity 300 Sight Range 16 Terrain Scan Range 16 Terrain Scan Density 10 Armor Coverage 150 Evasion (%) 40 Recoil Reduction 2 Item Schematics ----------------- Grenade Launcher | -9/Materials | Scanalyzed Robot Schematics ------------------ None Fabricated ------------ Nothing Alien Tech Used ----------------- None Achievements -------------- It's Just You Part-time Mechanic Challenges ------------ None Game ------ Seed ProtonPowerEdition Manual? 0 Play Time 00:22:32 Cumulative 1.9 hours Start 2024.04.02 @ 15:49:34 End 2024.04.02 @ 16:16:15 Sessions 1 Manual Loads 0 Difficulty Rogue Special Mode None Game No. 4 Rogue 4 Adventurer 0 Explorer 0 Win Type - Total 0 Types 0/0/0/0/0/0/0/0/0 Lore% 2 Gallery% 6 Achievement% 7 Wizard Run 0 Options --------- Layout 1 ASCII 0 Keyboard 0 Movement Arrows Keybinds 0 Fullscreen 1 Font 24/Smallcaps Map View 50x35 Zoom Use 0% Tactical HUD 0 Map Filters NONE Filters NONE Steam 1 RUN: 61e99e7f-4d1c-4727-b2fd-38952517f77f